bitfinex-derivatives/quotes_ETHF0:USTF0_20250103
["timestamp","ask_amount","ask_price","bid_price","bid_amount"]
[1735868262266,0.29001,3451.7,3451.6,4.84134688]
[1735868262760,0.29001,3451.7,3451.6,0.29002]
[1735868263169,0.29002,3451.6,3451.5,8.04914688]
[1735868263363,47.4234908,3452.0,3451.5,7.75912688]
[1735868263559,0.29002,3451.7,3451.5,8.04915688]
[1735868263764,0.29002,3451.6,3451.5,8.04915688]
[1735868263970,0.29001,3451.7,3451.5,8.04914688]
[1735868264466,0.29001,3451.7,3451.5,7.75912688]
[1735868264668,0.29001,3451.7,3451.5,8.04914688]
[1735868264863,0.29001,3451.7,3451.6,0.29002]
[1735868265671,3.4156908,3451.9,3451.5,7.75912688]
[1735868265969,0.29,3451.8,3451.6,4.84134688]
[1735868266371,3.4156908,3451.9,3451.7,0.29001]
[1735868266567,3.7056908,3451.9,3451.7,0.29001]
[1735868267272,3.4156908,3451.8,3451.7,0.29001]
[1735868268371,3.7057008,3451.8,3451.6,4.84133688]
[1735868268576,0.29001,3451.8,3451.6,4.84133688]
[1735868268869,0.29001,3451.7,3451.6,4.55132688]
[1735868269078,0.29001,3451.8,3451.6,4.84134688]
[1735868269866,3.7057008,3451.8,3451.6,4.84134688]
[1735868270274,0.29001,3451.7,3451.6,4.84134688]
[1735868270472,3.7057008,3451.8,3451.7,0.29001]
[1735868270673,3.7057008,3451.8,3451.6,4.55132688]
[1735868270874,3.7057008,3451.8,3451.6,4.84134688]
[1735868271475,0.29001,3451.7,3451.6,4.55132688]
[1735868271669,0.29001,3451.7,3451.6,4.84134688]
[1735868272374,3.7057008,3451.8,3451.6,4.84134688]
[1735868272574,0.29001,3451.7,3451.6,4.84134688]
[1735868273075,3.4156908,3451.8,3451.6,4.84134688]
[1735868273276,3.4156908,3451.8,3451.7,0.29001]
[1735868274974,3.7056908,3451.9,3451.8,0.29]
[1735868275174,3.4156908,3451.9,3451.8,0.29]
[1735868276266,44.5056808,3452.0,3451.9,0.28999]
[1735868276668,44.2156908,3452.0,3451.9,0.28999]
[1735868277478,40.8,3452.0,3451.9,0.28999]
[1735868277970,41.08999,3452.0,3451.8,0.29]
[1735868278974,41.08999,3452.0,3451.7,4.55132688]
[1735868279170,40.8,3452.0,3451.8,0.29]
[1735868279372,40.8,3452.0,3451.7,4.55132688]
[1735868279572,3.71137788,3451.9,3451.7,4.84133688]
[1735868280080,3.42138788,3451.9,3451.7,4.55132688]
[1735868280375,3.71138788,3451.9,3451.7,4.84133688]
[1735868280974,0.29,3451.8,3451.7,4.55132688]
[1735868282173,3.71138788,3451.8,3451.7,4.55132688]
[1735868283478,0.29001,3451.7,3451.6,4.55132688]
[1735868284573,3.71139788,3451.7,3451.6,4.55132688]
[1735868287280,0.29001,3451.7,3451.6,5.49070408]
[1735868287787,0.29001,3451.7,3451.6,5.78072408]
[1735868288388,0.29001,3451.7,3451.6,5.49070408]
[1735868288597,3.42138788,3451.7,3451.5,3.49782]
[1735868288793,0.29002,3451.6,3451.5,3.49782]
[1735868289485,0.29002,3451.6,3451.5,3.2078]
[1735868290083,0.29002,3451.6,3451.5,8.69885801]
[1735868291392,3.71140788,3451.6,3451.5,7.7674922]
[1735868292289,3.42138788,3451.6,3451.5,7.7674922]
[1735868292592,3.42138788,3451.6,3451.5,8.0575222]
[1735868293791,3.42138788,3451.8,3451.7,0.29001]
[1735868295294,3.42138788,3451.8,3451.7,4.84867054]
[1735868295790,3.71138788,3451.8,3451.7,4.84867054]
[1735868296686,3.71138788,3451.8,3451.7,4.55866054]
[1735868297892,0.29002,3451.6,3451.5,7.76646054]
[1735868299291,3.71269021,3451.6,3451.5,7.76646054]
[1735868300196,3.71269021,3451.6,3451.5,4.55866054]
[1735868300495,3.42267021,3451.6,3451.5,4.84869054]
[1735868300896,3.71269021,3451.6,3451.5,4.55866054]
[1735868301099,6.00550518,3451.6,3451.5,4.55866054]
[1735868301790,2.29281497,3451.6,3451.4,4.55866054]
[1735868301990,0.29003,3451.5,3451.4,4.55866054]
[1735868303195,3.71250016,3451.5,3451.3,4.55866054]
[1735868303590,0.29004,3451.4,3451.3,4.55866054]
[1735868303791,3.42247016,3451.5,3451.3,4.55866054]
[1735868304098,0.29004,3451.4,3451.3,4.55866054]
[1735868304392,0.29004,3451.4,3451.3,4.84871054]
[1735868304596,0.29004,3451.4,3451.3,4.55866054]
[1735868305691,3.71251016,3451.4,3451.3,4.55866054]
[1735868306591,3.71251016,3451.4,3451.3,4.84871054]
[1735868306897,3.71251016,3451.4,3451.3,10.35509117]
[1735868309396,3.42247016,3451.4,3451.3,4.84871054]
[1735868310891,3.42247016,3451.5,3451.4,0.29004]
[1735868311997,5.71528513,3451.6,3451.4,5.50485923]
[1735868312193,5.71528513,3451.6,3451.5,0.29003]
[1735868312799,3.42247016,3451.6,3451.5,0.29003]
[1735868313192,3.42247016,3451.6,3451.5,4.84911173]
[1735868314800,0.29001,3451.7,3451.6,0.29002]
[1735868314996,3.71248016,3451.8,3451.7,0.29001]
[1735868315503,0.29001,3451.7,3451.6,0.29001]
[1735868315702,3.42247016,3451.8,3451.7,4.55906267]
[1735868315703,0.29001,3451.8,3451.7,4.55906267]
[1735868316801,0.29002,3451.6,3451.5,4.55906267]
[1735868317202,2.58283497,3451.6,3451.5,4.55906267]
[1735868317802,43.38283497,3451.6,3451.5,4.55906267]
[1735868318904,43.38283497,3451.6,3451.4,0.29004]
[1735868318905,47.93708937,3451.6,3451.4,0.29004]
[1735868319105,47.64706937,3451.6,3451.3,4.55906267]
[1735868319496,47.64706937,3451.6,3451.4,0.29004]
[1735868319804,3.42287046,3451.4,3451.3,4.84911267]
[1735868320801,3.42287046,3451.5,3451.4,0.29004]
[1735868321903,3.42287046,3451.5,3451.4,4.84941941]
[1735868322901,44.22287046,3451.6,3451.5,0.29003]
[1735868323908,40.8,3451.6,3451.3,6.83733972]
[1735868324110,41.09003,3451.6,3451.4,0.29003]
[1735868324409,41.09002,3451.6,3451.4,0.29003]
[1735868325003,3.42323157,3451.5,3451.4,4.85061345]
[1735868326117,3.42323157,3451.5,3451.4,10.40093322]
[1735868327212,3.42323157,3451.5,3451.4,5.84034977]
[1735868328308,4.43214598,3451.5,3451.4,5.84034977]
[1735868329114,4.43214598,3451.5,3451.4,5.55031977]
[1735868329115,4.72217598,3451.5,3451.4,5.55031977]
[1735868329803,4.72217598,3451.5,3451.4,10.11137767]
[1735868330309,3.42323157,3451.5,3451.4,10.11137767]
[1735868330511,3.42323157,3451.5,3451.4,10.40141767]
[1735868331009,3.42323157,3451.5,3451.4,5.84035977]
[1735868331309,3.42323157,3451.5,3451.4,5.55031977]
[1735868331506,3.71326157,3451.5,3451.4,5.55031977]
[1735868332106,3.71326157,3451.5,3451.4,5.84035977]
[1735868332302,3.42323157,3451.5,3451.4,5.84035977]
[1735868332905,3.71326157,3451.5,3451.4,5.55031977]
[1735868335809,3.71326157,3451.5,3451.4,5.55031977]
[1735868336309,3.42323157,3451.5,3451.4,5.55031977]
[1735868336614,3.42323157,3451.5,3451.4,5.84035977]
[1735868339117,3.71326157,3451.5,3451.4,5.55031977]
[1735868342310,0.29003,3451.5,3451.4,12.38765949]
[1735868347320,0.29003,3451.5,3451.4,12.67769949]
[1735868347522,45.6442744,3451.6,3451.4,12.67769949]
[1735868347821,0.29003,3451.5,3451.4,12.38765949]
[1735868349438,45.3542544,3451.6,3451.4,12.67769949]
[1735868349732,0.29003,3451.5,3451.4,12.67769949]
[1735868349931,0.29003,3451.5,3451.4,12.38765949]
[1735868350527,46.65321199,3451.6,3451.4,12.67768949]
[1735868350729,46.36319199,3451.6,3451.4,12.38765949]
[1735868350924,0.29003,3451.5,3451.4,12.38765949]
[1735868351135,0.29003,3451.5,3451.4,12.67769949]
[1735868351537,0.29003,3451.5,3451.4,12.38765949]
[1735868352540,0.29003,3451.5,3451.4,12.67769949]
[1735868353039,0.29003,3451.5,3451.4,12.38765949]
[1735868353735,3.71512822,3451.5,3451.4,12.38765949]
[1735868355231,4.8442844,3451.5,3451.4,4.56673774]
[1735868356441,46.492818,3451.6,3451.3,4.56673774]
[1735868356641,1.00893759,3451.4,3451.3,4.85677774]
[1735868356834,1.00893759,3451.4,3451.3,4.85678774]
[1735868357530,1.00893759,3451.4,3451.3,4.56673774]
[1735868357941,4.43367135,3451.4,3451.3,12.3938483]
[1735868359242,4.43367135,3451.4,3451.3,5.84655858]
[1735868360737,4.43367135,3451.4,3451.3,5.55650858]
[1735868360943,4.72371135,3451.4,3451.3,5.55650858]
[1735868361641,1.29897759,3451.4,3451.3,12.40668761]
[1735868364445,1.29897759,3451.4,3451.3,5.84655858]
[1735868365042,1.00893759,3451.4,3451.3,5.84655858]
[1735868365945,4.43436281,3451.4,3451.3,5.84655858]
[1735868366941,3.42542522,3451.4,3451.3,6.85549617]
[1735868367141,45.36631168,3451.6,3451.3,6.85549617]
[1735868367142,3.2062369,3451.6,3451.3,11.56544617]
[1735868367346,5.692818,3451.8,3451.5,1.00893759]
[1735868367547,2.970418,3451.8,3451.7,4.50674759]
[1735868367743,2.864818,3451.8,3451.7,4.50674759]
[1735868367942,2.864818,3451.8,3451.7,9.50674759]
[1735868368950,40.8,3452.3,3451.7,9.50674759]
[1735868368951,40.8,3452.3,3451.7,40.06608784]
[1735868369143,40.8,3452.3,3452.2,3.49777]
[1735868370250,40.8,3452.3,3452.2,9.05427858]
[1735868371646,40.8,3452.3,3452.2,18.16535555]
[1735868372047,0.28992,3452.8,3452.6,0.28993]
[1735868372247,0.28992,3452.8,3452.2,17.87538555]
[1735868372551,0.28992,3452.8,3452.6,0.28993]
[1735868372951,5.79158492,3453.0,3452.7,0.28992]
[1735868373154,0.28991,3452.9,3452.7,0.28992]
[1735868373451,40.8,3452.8,3452.7,0.28993]
[1735868375852,40.8,3452.8,3452.7,3.49773]
[1735868376051,0.28988,3453.3,3452.7,3.2078]
[1735868376357,0.28988,3453.3,3453.1,0.28989]
[1735868376545,40.8,3453.2,3453.1,0.28989]
[1735868377553,0.28987,3453.4,3453.2,0.28988]
[1735868378052,41.08987,3453.4,3452.7,7.75518345]
[1735868378253,41.08987,3453.4,3453.2,0.28988]
[1735868378654,40.8,3453.4,3452.9,2.29387492]
[1735868378856,40.8,3453.4,3453.3,0.28988]
[1735868379157,40.8,3453.4,3453.3,1.42888]
[1735868379854,0.28982,3454.1,3453.8,0.28983]
[1735868380358,2.29387492,3454.4,3453.5,5.50167492]
[1735868380553,0.28983,3453.9,3453.6,0.28985]
[1735868380752,0.28983,3453.9,3453.7,0.28984]
[1735868381057,0.28982,3454.0,3453.7,0.28984]
[1735868381445,2.29387492,3454.4,3453.9,0.28982]
[1735868381861,0.28981,3454.1,3453.9,0.28982]
[1735868382257,0.28981,3454.2,3453.9,0.28982]
[1735868382557,40.8,3454.0,3453.9,0.28982]
[1735868382864,0.28979,3454.4,3454.1,0.28981]
[1735868383157,3.2078,3454.5,3454.3,0.28979]
[1735868383353,40.8,3454.4,3454.3,0.28979]
[1735868387156,40.8,3454.4,3453.8,1.138]
[1735868387359,40.8,3454.4,3453.8,1.42783]
[1735868387560,40.8,3454.4,3453.8,0.28983]
[1735868387561,0.28982,3454.0,3453.8,0.28983]
[1735868388362,40.8,3454.4,3453.6,4.3458]
[1735868388564,0.2898,3454.2,3454.0,0.28982]
[1735868389064,0.2898,3454.3,3454.1,0.28981]
[1735868389457,40.8,3454.4,3453.6,4.3458]
[1735868389458,40.8,3454.4,3454.3,0.28979]
[1735868396362,40.8,3454.4,3454.3,1.42779]
[1735868398871,3.93197,3455.9,3454.5,0.72444]
[1735868399169,0.28972,3455.2,3455.0,0.28973]
[1735868399363,0.28971,3455.3,3455.0,1.138]
[1735868399569,0.28971,3455.3,3455.1,0.28973]
[1735868399769,0.28971,3455.3,3455.0,1.42773]
[1735868399967,0.28971,3455.3,3455.1,0.28972]
[1735868400168,40.8,3455.4,3455.0,1.138]
[1735868400875,0.28972,3455.2,3455.0,1.42773]
[1735868401474,0.28972,3455.2,3455.0,1.138]
[1735868401678,0.28972,3455.2,3455.0,1.42773]
[1735868401874,40.8,3455.4,3455.0,1.42773]
[1735868402171,0.28971,3455.3,3455.0,1.42773]
[1735868402371,40.8,3455.4,3455.0,1.42773]
[1735868402575,0.28972,3455.2,3455.0,1.42773]
[1735868402775,40.8,3455.4,3455.0,1.138]
[1735868403075,0.28971,3455.3,3455.0,1.138]
[1735868403276,40.8,3455.4,3455.0,1.138]
[1735868403473,0.28971,3455.3,3455.0,1.138]
[1735868403675,0.28972,3455.2,3455.0,1.42773]
[1735868404183,40.8,3455.4,3455.0,1.138]
[1735868404376,0.28971,3455.3,3455.0,1.138]
[1735868404574,40.8,3455.4,3455.0,1.138]
[1735868405081,0.28973,3455.1,3455.0,1.138]
[1735868406478,0.28973,3455.1,3454.9,3.49754]
[1735868407083,0.28973,3455.0,3454.9,3.2078]
[1735868409483,0.28973,3455.1,3454.9,3.2078]
[1735868410279,40.8,3455.4,3454.9,3.2078]
[1735868410487,0.28971,3455.3,3455.0,0.28973]
[1735868410683,40.8,3455.4,3454.9,3.2078]
[1735868410893,0.28973,3455.0,3454.9,3.2078]
[1735868411385,0.28973,3455.1,3454.9,3.2078]
[1735868411888,40.8,3455.4,3454.9,3.2078]
[1735868412095,0.28973,3455.0,3454.9,3.2078]
[1735868414493,0.28973,3455.0,3454.9,4.21456018]
[1735868419798,0.28973,3455.0,3454.9,3.2078]
[1735868423104,1.73104018,3455.3,3454.7,1.00676018]
[1735868423305,0.28975,3454.8,3454.7,4.21456018]
[1735868424010,0.28975,3454.8,3454.7,8.76194363]
[1735868425312,0.28975,3454.8,3454.7,9.94124763]
[1735868426011,0.28975,3454.8,3454.7,4.21456018]
[1735868426809,0.28975,3454.8,3454.7,3.2078]
[1735868428511,1.00676018,3454.9,3454.6,4.53812247]
[1735868428710,0.28976,3454.7,3454.6,4.53812247]
[1735868429211,41.08976,3454.7,3454.6,4.53812247]
[1735868429409,42.09652018,3454.7,3454.6,3.57972247]
[1735868429609,45.30432018,3454.7,3454.6,3.57972247]
[1735868430713,0.2898,3454.2,3454.1,6.8071837]
[1735868431010,0.2898,3454.2,3454.1,3.0045837]
[1735868431719,41.0898,3454.2,3454.1,3.0045837]
[1735868432212,43.38206797,3454.2,3454.1,3.0045837]
[1735868432413,0.28987,3453.5,3453.2,9.07624494]
[1735868432615,3.2078,3453.9,3453.2,9.07624494]
[1735868432919,0.28987,3453.4,3453.2,9.07624494]
[1735868433521,0.28987,3453.4,3453.1,0.28989]
[1735868435520,0.28988,3453.3,3453.0,3.72416797]
[1735868435725,5.50006797,3453.9,3453.0,2.29226797]
[1735868435918,0.28989,3453.1,3452.9,1.142]
[1735868436720,0.2899,3453.0,3452.9,1.142]
[1735868438525,0.72462,3453.7,3452.9,1.142]
[1735868439325,0.2899,3453.0,3452.9,1.142]
[1735868444924,0.28992,3452.8,3452.7,1.143]
[1735868446433,0.28991,3452.9,3452.7,1.43292]
[1735868446928,0.72468,3453.4,3452.7,1.43292]
[1735868447134,0.28992,3452.8,3452.7,1.143]
[1735868447530,0.72473,3453.2,3452.5,1.143]
[1735868447729,0.28994,3452.5,3452.4,3.2078]
[1735868451432,0.28994,3452.5,3452.3,1.43296]
[1735868451933,0.28994,3452.5,3452.4,0.28995]
[1735868452230,0.28994,3452.5,3452.4,1.29805343]
[1735868453130,0.28994,3452.5,3452.4,1.00810343]
[1735868453525,1.00810343,3452.7,3452.3,1.143]
[1735868453729,1.00810343,3452.7,3452.4,1.00810343]
[1735868453730,0.28995,3452.5,3452.4,1.00810343]
[1735868455039,0.28994,3452.6,3452.4,1.29805343]
[1735868455227,1.00810343,3452.9,3452.4,1.29805343]
[1735868455534,0.28994,3452.5,3452.4,1.29805343]
[1735868456231,0.28994,3452.6,3452.4,1.29805343]
[1735868459338,0.28995,3452.4,3452.3,4.3508]
[1735868459541,0.28995,3452.5,3452.3,4.64076]
[1735868461147,0.28995,3452.4,3452.3,3.2078]
[1735868461339,4.21590343,3452.6,3452.0,1.00810343]
[1735868461636,0.28997,3452.2,3452.0,2.15110343]
[1735868461939,0.28998,3452.1,3452.0,2.44108343]
[1735868462334,0.28998,3452.1,3452.0,1.29808343]
[1735868462529,1.00810343,3452.2,3451.9,1.136]
[1735868462834,1.29809343,3452.0,3451.9,1.136]
[1735868463137,42.09809343,3452.0,3451.9,1.136]
[1735868466242,41.08999,3452.0,3451.9,1.136]
[1735868466939,0.29002,3451.7,3451.5,0.29002]
[1735868468336,40.8,3452.0,3451.4,4.3438]
[1735868468542,0.29001,3451.8,3451.6,0.29002]
[1735868470443,0.29,3451.9,3451.4,6.63834749]
[1735868470642,0.29,3451.9,3451.7,0.29001]
[1735868470842,40.8,3452.0,3451.7,0.29001]
[1735868471138,0.29,3451.8,3451.7,0.29001]
[1735868471341,5.50234749,3452.7,3451.7,2.29454749]
[1735868471542,0.28997,3452.3,3452.1,0.28998]
[1735868471742,0.28997,3452.3,3452.2,0.28997]
[1735868471942,0.28996,3452.4,3452.2,0.28997]
[1735868472343,40.8,3452.6,3451.9,3.2078]
[1735868472548,0.28998,3452.1,3451.9,3.49779]
[1735868473351,40.8,3452.6,3451.9,3.2078]
[1735868473549,0.28998,3452.2,3452.0,0.28999]
[1735868474250,0.28994,3452.5,3452.0,0.28999]
[1735868474450,0.28997,3452.2,3452.0,0.28999]
[1735868476765,0.28997,3452.2,3452.0,0.28998]
[1735868477160,0.28994,3452.5,3452.0,0.28998]
[1735868477365,0.28998,3452.2,3452.0,0.28998]
[1735868478461,0.28999,3451.9,3451.8,3.2078]
[1735868478667,0.28999,3451.9,3451.8,4.3438]
[1735868486868,0.28999,3451.9,3451.8,3.2078]
[1735868488372,1.00859097,3452.1,3451.6,3.2078]
[1735868488671,0.29002,3451.7,3451.6,3.2078]
[1735868491267,1.00859097,3451.7,3451.1,9.07624494]
[1735868491575,0.29005,3451.2,3451.1,9.07624494]
[1735868492267,41.09005,3451.2,3451.1,9.07624494]
[1735868493381,40.8,3451.2,3450.9,3.2078]
[1735868493572,0.29007,3451.0,3450.9,3.2078]
[1735868494777,0.29007,3451.0,3450.9,8.77973034]
[1735868495278,0.29007,3451.0,3450.9,5.57193034]
[1735868495466,0.29007,3451.0,3450.9,8.77973034]
[1735868496874,40.8,3451.4,3450.9,8.77973034]
[1735868497070,0.29007,3451.0,3450.9,8.77973034]
[1735868497378,40.8,3451.4,3450.9,15.60819311]
[1735868497674,0.29007,3451.0,3450.9,15.60819311]
[1735868498072,0.29007,3451.1,3450.9,15.60819311]
[1735868498679,6.62109,3451.9,3451.0,2.29524676]
[1735868498982,0.29003,3451.5,3451.3,3.2078]
[1735868499982,0.29004,3451.4,3451.3,3.2078]
[1735868501874,40.8,3451.8,3451.3,3.2078]
[1735868502079,0.29004,3451.4,3451.3,3.2078]
[1735868504287,0.29005,3451.2,3451.1,6.82846277]
[1735868504981,41.09005,3451.2,3451.1,6.82846277]
[1735868505786,0.29009,3450.8,3450.5,7.11857277]
[1735868506282,0.29008,3450.7,3450.5,7.11855277]
[1735868506479,0.29006,3450.9,3450.5,7.11855277]
[1735868506685,0.29007,3450.8,3450.5,7.11855277]
[1735868508787,0.29007,3450.8,3450.6,0.29009]
[1735868508788,0.29008,3450.8,3450.6,0.29009]
[1735868509188,0.29008,3450.8,3450.5,6.82846277]
[1735868509389,0.29008,3450.8,3450.5,7.11855277]
[1735868509581,0.29008,3450.8,3450.6,0.29009]
[1735868509889,3.2078,3451.0,3450.5,6.82846277]
[1735868510091,0.29008,3450.8,3450.6,0.29009]
[1735868510390,0.29009,3450.7,3450.5,0.2901]
[1735868511090,0.29009,3450.7,3450.6,0.2901]
[1735868511492,0.29008,3450.8,3450.6,0.2901]
[1735868511989,3.2078,3451.0,3450.6,0.29008]
[1735868512189,0.29008,3450.7,3450.6,0.29008]
[1735868514400,0.29008,3450.7,3450.5,1.00917944]
[1735868514697,0.29008,3450.7,3450.6,0.29009]
[1735868515191,0.29008,3450.7,3450.6,0.29182797]
[1735868518097,0.29008,3450.7,3450.6,0.00173797]
[1735868518495,0.29008,3450.7,3450.6,0.29182797]
[1735868519289,1.00917944,3451.0,3450.6,0.29182797]
[1735868519494,0.29008,3450.8,3450.6,0.29182797]
[1735868519998,0.29008,3450.8,3450.6,0.00173797]
[1735868520191,1.00917944,3451.0,3450.6,0.00173797]
[1735868520389,0.29007,3450.8,3450.6,0.29181797]
[1735868521386,0.29007,3450.8,3450.7,0.29008]
[1735868521793,0.29007,3450.8,3450.6,0.29181797]
[1735868521993,0.29008,3450.7,3450.6,0.00173797]
[1735868523899,0.29008,3450.7,3450.6,0.29182797]
[1735868524203,0.29008,3450.7,3450.6,12.90140046]
[1735868525996,4.21697944,3451.0,3450.6,12.61131046]
[1735868526296,0.29008,3450.8,3450.7,0.29009]
[1735868527202,3.2078,3451.0,3450.9,0.29007]
[1735868527495,0.29001,3451.7,3450.9,1.00917944]
[1735868527701,0.29001,3451.7,3451.5,1.29918944]
[1735868527901,7.7581366,3451.9,3451.5,1.00917944]
[1735868528094,40.8,3451.8,3451.7,1.29916944]
[1735868528293,7.7581366,3451.9,3451.8,0.28998]
[1735868528791,3.2078,3451.9,3451.8,0.28998]
[1735868530001,3.2078,3451.9,3451.8,12.89955249]
[1735868530893,3.2078,3451.9,3451.8,6.07108972]
[1735868533505,3.2078,3451.9,3451.8,12.90014874]
[1735868534406,40.8,3452.2,3452.1,0.28996]
[1735868534603,40.8,3452.2,3452.1,1.42596]
[1735868535507,0.28989,3452.9,3452.3,0.28993]
[1735868535707,0.28992,3452.6,3452.3,0.28993]
[1735868536007,40.8,3452.5,3452.3,0.28993]
[1735868536302,40.8,3452.5,3452.4,0.28993]
[1735868536504,40.8,3452.5,3452.3,6.82905902]
[1735868536805,0.28993,3452.4,3452.3,6.82905902]
[1735868537506,40.8,3452.5,3452.2,0.28995]
[1735868538001,40.8,3452.5,3452.3,0.28994]
[1735868538207,40.8,3452.5,3452.3,0.28993]
[1735868538411,40.8,3452.5,3452.4,0.28993]
[1735868552214,40.8,3452.5,3452.4,1.29792866]
[1735868552613,0.28992,3452.7,3452.5,0.28993]
[1735868553109,40.8,3452.6,3452.5,0.28993]
[1735868554711,3.2078,3453.0,3452.5,3.2078]
[1735868554923,3.49769,3453.0,3452.8,1.29788866]
[1735868555115,0.28989,3453.0,3452.8,2.43388866]
[1735868555416,40.8,3453.0,3452.9,0.28989]
[1735868556314,40.8,3453.0,3452.8,2.14399866]
[1735868556315,3.2078,3453.4,3452.8,2.14399866]
[1735868556516,3.2078,3453.4,3453.3,0.28986]
[1735868556713,0.28983,3453.7,3453.3,0.28986]
[1735868556913,0.28982,3453.7,3453.6,1.29782866]
[1735868557113,0.28982,3453.7,3453.6,1.00799866]
[1735868557412,40.8,3453.7,3453.6,1.29782866]
[1735868558213,40.8,3453.7,3453.6,0.28983]
[1735868559816,41.08982,3453.7,3453.5,1.42584]
[1735868560118,40.8,3453.7,3453.6,0.28983]
[1735868560317,41.08982,3453.7,3453.5,1.42583]
[1735868560509,40.8,3453.7,3453.5,1.136]
[1735868560711,41.08982,3453.7,3453.5,1.42583]
[1735868560916,40.8,3453.7,3453.5,1.136]
[1735868561115,41.08982,3453.7,3453.5,1.42584]
[1735868562122,40.8,3453.7,3453.5,1.42584]
[1735868562420,40.8,3453.7,3453.6,0.28983]
[1735868562622,41.08982,3453.7,3453.5,1.42583]
[1735868563412,41.08982,3453.7,3453.6,0.28983]
[1735868563614,41.08982,3453.7,3453.5,1.136]
[1735868563814,40.8,3453.7,3453.6,0.28983]
[1735868565216,41.08982,3453.7,3453.6,0.28983]
[1735868565422,40.8,3453.7,3453.6,0.28983]
[1735868574419,40.8,3453.7,3453.6,4.8249798]
[1735868574620,0.2898,3454.0,3453.6,4.5351498]
[1735868574914,0.2898,3454.0,3453.9,0.28981]
[1735868575117,0.28979,3454.1,3453.7,0.28982]
[1735868575318,0.28979,3454.1,3453.9,0.2898]
[1735868575518,40.8,3454.0,3453.9,0.2898]
[1735868576219,40.8,3454.0,3453.5,4.3438]
[1735868576220,41.0898,3454.0,3453.7,4.5351498]
[1735868576416,41.0898,3454.0,3453.8,0.28981]
[1735868576621,41.0898,3454.0,3453.7,4.5351498]
[1735868576926,41.0898,3454.0,3453.9,0.28981]
[1735868577524,40.8,3454.0,3453.9,0.28981]
[1735868578228,41.0898,3454.0,3453.8,0.28981]
[1735868578429,41.0898,3454.0,3453.6,4.5351498]
[1735868578727,41.0898,3454.0,3453.8,0.28981]
[1735868578928,41.0898,3454.0,3453.9,0.28981]
[1735868579619,40.8,3454.0,3453.9,0.28981]
[1735868579823,41.0898,3454.0,3453.7,4.5351498]
[1735868580024,41.0898,3454.0,3453.8,0.28981]
[1735868580329,41.0898,3454.0,3453.8,1.29706092]
[1735868581728,41.0898,3454.0,3453.9,0.28981]
[1735868582124,41.0898,3454.0,3453.8,1.00725092]
[1735868582323,41.0898,3454.0,3453.9,0.2898]
[1735868582324,40.8,3454.0,3453.9,0.2898]
[1735868582828,41.0898,3454.0,3453.8,1.29706092]
[1735868583018,0.2898,3453.9,3453.8,1.29706092]
[1735868584136,41.0898,3454.0,3453.8,1.29706092]
[1735868584538,40.8,3454.0,3453.8,1.00725092]
[1735868584737,41.0898,3454.0,3453.9,0.2898]
[1735868584935,40.8,3454.0,3453.8,1.00725092]
[1735868585142,40.8,3454.0,3453.9,0.2898]
[1735868586041,4.21505092,3454.6,3453.8,1.00725092]
[1735868586243,4.21505092,3454.6,3453.7,7.7429498]
[1735868586244,4.21505092,3454.6,3454.0,0.28979]
[1735868586443,1.00725092,3454.4,3454.0,0.28979]
[1735868586640,3.2078,3454.6,3454.2,0.28978]
[1735868586641,0.28978,3454.3,3454.2,0.28978]
[1735868586841,3.2078,3454.6,3454.1,1.00725092]
[1735868587041,0.28975,3454.5,3454.2,0.28978]
[1735868587243,3.2078,3454.6,3454.2,0.28978]
[1735868587540,0.28977,3454.4,3454.2,0.28978]
[1735868588341,3.2078,3454.6,3454.3,1.00725092]
[1735868588940,0.28975,3454.5,3454.4,0.28976]
[1735868589339,0.28975,3454.6,3454.4,0.28976]
[1735868589741,0.28975,3454.6,3454.3,1.00725092]
[1735868590052,0.28975,3454.6,3454.4,0.28976]
[1735868590345,40.8,3454.8,3454.3,1.00725092]
[1735868590535,0.28974,3454.7,3454.5,1.00725092]
[1735868590739,0.28974,3454.7,3454.5,1.29700092]
[1735868590940,0.28975,3454.6,3454.5,1.00725092]
[1735868591140,40.8,3454.8,3454.5,1.00725092]
[1735868591547,0.28975,3454.6,3454.5,1.00725092]
[1735868591742,0.28975,3454.6,3454.5,1.29700092]
[1735868592150,0.28975,3454.6,3454.5,1.00725092]
[1735868592443,0.28974,3454.7,3454.6,0.28974]
[1735868592650,0.28974,3454.7,3454.5,1.29700092]
[1735868592840,0.28975,3454.6,3454.5,1.29700092]
[1735868593546,40.8,3454.8,3454.5,1.00725092]
[1735868593849,40.8,3454.8,3454.7,1.29699092]
[1735868594953,41.08973,3454.8,3454.7,1.29699092]
[1735868595454,40.8,3454.8,3454.7,1.29699092]
[1735868596445,0.2897,3455.2,3454.7,1.00725092]
[1735868596651,0.2897,3455.2,3455.1,1.29695092]
[1735868596843,3.49748,3455.4,3455.2,0.28969]
[1735868597148,3.49748,3455.4,3455.3,1.00725092]
[1735868597349,3.2078,3455.4,3455.3,1.00725092]
[1735868597650,3.2078,3455.4,3455.3,1.29694092]
[1735868597852,3.49748,3455.4,3455.3,1.29694092]
[1735868598053,3.2078,3455.4,3455.3,1.29694092]
[1735868598550,40.8,3455.5,3455.3,1.29694092]
[1735868598753,41.08968,3455.5,3455.4,0.28968]
[1735868598948,41.08968,3455.5,3455.3,1.29694092]
[1735868599346,40.8,3455.5,3455.3,1.29694092]
[1735868599552,0.2897,3455.3,3455.1,1.29695092]
[1735868600154,0.2897,3455.2,3455.1,1.29695092]
[1735868600548,0.28969,3455.3,3455.1,1.29695092]
[1735868603356,0.28969,3455.3,3455.1,1.00725092]
[1735868603556,0.28969,3455.3,3455.2,0.2897]
[1735868604856,0.28969,3455.3,3455.1,1.00725092]
[1735868605156,0.2897,3455.1,3455.0,4.5351498]
[1735868605963,41.0897,3455.1,3455.0,4.5351498]
[1735868606359,41.0897,3455.1,3454.9,3.2078]
[1735868606360,40.8,3455.1,3454.9,3.2078]